[Event "EYCC 2017"]
[Site "Mamaia"]
[Date "2017.09.13"]
[Round "8"]
[White "Garifullina, Leya"]
[Black "Jarocka, Liwia"]
[Result "1/2-1/2"]
[ECO "B27"]
[WhiteElo "1970"]
[BlackElo "1970"]
[Annotator "NA RC"]
[PlyCount "73"]
[EventDate "2017.??.??"]
[EventType "swiss"]
[EventCountry "ROU"]
[SourceTitle "playchess.com"]
[Source "ChessBase"]
[SourceQuality "1"]
[TimeControl "40/5400+30:1800+30"]

1. e4 {[%emt 0:00:51]} c5 {[%emt 0:00:10]} 2. Nf3 {[%emt 0:00:23]} g6 {[%emt 0:00:25]} 3. d4 {[%emt 0:01:28]} cxd4 {[%emt 0:00:15]} 4. Qxd4 {[%emt 0:00:33]} Nf6 {[%emt 0:00:07]} 5. e5 {[%emt 0:00:30]} Nc6 {[%emt 0:00:33]} 6. Qa4 {[%emt 0:01:58]} Nd5 {[%emt 0:01:05]} 7. Qe4 {[%emt 0:00:14]} Nb6 {[%emt 0:00:28] B27: Sizilianisch (Frühes Fianchetto)} 8. Bd3 {[%emt 0:08:06]} (8. Nc3 Bg7 9. Bf4 d5 10. exd6 Bf5 11. Qe2 O-O 12. O-O-O exd6 13. Rxd6 Qc8 14. Qb5 Re8 15. h4 {½-½ (30) Saric,I (2666)-Hou,Y (2673) Wijk aan Zee 2015}) 8... Bg7 {[%emt 0:00:51]} 9. O-O {[%emt 0:00:35]} d5 {[%emt 0:05:14]} 10. exd6 {[%emt 0:02:09]} Qxd6 11. Rd1 {[%emt 0:04:21]} O-O {[%emt 0:03:55]} 12. Nc3 {[%emt 0:07:55]} Bf5 $146 {[%emt 0:09:15]} ({Vorgänger:} 12... Qb4 13. a3 Qxe4 14. Bxe4 Bf5 15. Bxf5 gxf5 {0-1 (44) Cruz Fernandez,J (1734)-Sanchez,J (2181) San Francisco de Macoris 2016}) 13. Qe2 {[%emt 0:05:40]} Bxd3 {[%emt 0:08:59]} 14. Rxd3 {[%emt 0:01:31]} Qc7 {[%emt 0:01:56]} 15. Nb5 {[%emt 0:05:27]} Qc8 {[%emt 0:01:08]} 16. c3 {[%emt 0:03:01]} a6 {[%emt 0:01:46]} 17. Na3 {[%emt 0:04:03]} Qc7 {[%emt 0:07:14]} 18. Be3 {[%emt 0:04:07]} Rfd8 {[%emt 0:01:00]} 19. Rad1 {[%emt 0:03:03]} Nd7 {[%emt 0:01:55]} 20. Nc4 {[%emt 0:05:33]} b5 {[%emt 0:19:49]} 21. Rxd7 {[%emt 0:04:18]} Rxd7 {[%emt 0:00:06]} 22. Rxd7 {[%emt 0:00:02]} Qxd7 {[%emt 0:00:08]} 23. Nb6 {[%emt 0:00:04]} Qb7 {[%emt 0:00:07]} 24. Nxa8 {[%emt 0:00:07]} Qxa8 {[%emt 0:00:05]} 25. Qd1 {[%emt 0:04:48]} Qd8 {[%emt 0:06:01]} 26. Qxd8+ {[%emt 0:01:08]} Nxd8 {[%emt 0:00:16]} 27. Kf1 {[%emt 0:00:28]} e5 {[%emt 0:02:50]} 28. Ke2 {[%emt 0:05:02]} Kf8 {[%emt 0:00:41]} 29. Nd2 $11 {[%emt 0:10:42]} Ke7 {[%emt 0:01:43]} 30. Kd3 {[%emt 0:01:18]} Ne6 {[%emt 0:01:37]} 31. f3 {[%emt 0:03:41]} f5 {[%emt 0:00:41]} 32. b4 {[%emt 0:02:35]} Kd6 {[%emt 0:01:03]} 33. c4 {[%emt 0:02:15]} Nd8 {[%emt 0:03:06]} 34. Bc5+ {[%emt 0:01:55]} Kc6 {[%emt 0:02:05]} 35. Be3 {[%emt 0:01:27]} Nf7 {[%emt 0:01:03]} 36. Kc3 {[%emt 0:02:06]} f4 {[%emt 0:12:43]} 37. Bc5 1/2-1/2

[Event "EYCC 2017"]
[Site "Mamaia"]
[Date "2017.09.13"]
[Round "8"]
[White "Wikar, Martyna"]
[Black "Mironenko, Galina"]
[Result "0-1"]
[ECO "A45"]
[WhiteElo "1943"]
[BlackElo "2035"]
[Annotator "NA RC"]
[PlyCount "102"]
[EventDate "2017.??.??"]
[EventType "swiss"]
[EventCountry "ROU"]
[SourceTitle "playchess.com"]
[Source "ChessBase"]
[SourceQuality "1"]
[TimeControl "40/5400+30:1800+30"]

1. d4 {[%emt 0:00:00]} Nf6 {[%emt 0:00:00]} 2. g3 {[%emt 0:00:00]} e6 3. Bg2 {[%emt 0:00:19]} d5 {[%emt 0:00:34]} 4. Nf3 {[%emt 0:00:13]} Be7 {[%emt 0:00:36]} 5. O-O {[%emt 0:00:32]} O-O {[%emt 0:00:20]} 6. c4 {[%emt 0:01:34]} b6 {[%emt 0:01:38]} 7. b3 {[%emt 0:03:11]} Bb7 {[%emt 0:01:13]} 8. Nc3 {[%emt 0:01:02]} Nbd7 {[%emt 0:03:10]} 9. Ne5 {[%emt 0:03:33]} c5 {[%emt 0:13:48]} 10. e3 {[%emt 0:07:07]} Rc8 {[%emt 0:06:13]} 11. Bb2 {[%emt 0:02:58]} a6 {[%emt 0:11:25]} 12. f4 {[%emt 0:08:49]} Qc7 {[%emt 0:06:50]} 13. Rc1 {[%emt 0:08:24]} Rfd8 {[%emt 0:07:29]} 14. Qf3 {[%emt 0:10:06]} Ne4 {[%emt 0:10:32]} 15. Nxe4 {[%emt 0:02:22]} dxe4 {[%emt 0:00:15]} 16. Qe2 {[%emt 0:04:07]} Nf8 {[%emt 0:10:30]} 17. h4 {[%emt 0:12:01]} f6 {[%emt 0:03:49]} 18. Ng4 {[%emt 0:00:16]} Qd7 {[%emt 0:01:55]} 19. Rcd1 {[%emt 0:04:35]} Qe8 {[%emt 0:02:08]} 20. h5 {[%emt 0:03:59]} h6 {[%emt 0:01:04]} 21. f5 {[%emt 0:04:00]} Kh8 {[%emt 0:03:59]} 22. Nh2 {[%emt 0:06:08]} exf5 {[%emt 0:02:59]} 23. Rxf5 {[%emt 0:00:24]} Bd6 {[%emt 0:00:20]} 24. d5 {[%emt 0:02:22]} Rc7 {[%emt 0:01:16]} 25. Qf2 {[%emt 0:07:07]} Nh7 {[%emt 0:04:04]} 26. Qe1 {[%emt 0:04:53]} Bc8 {[%emt 0:00:34]} 27. Rf1 {[%emt 0:00:06]} Ng5 {[%emt 0:01:50]} 28. Rf4 {[%emt 0:01:38]} Bxf4 {[%emt 0:02:27]} 29. gxf4 {[%emt 0:00:23]} Nh3+ {[%emt 0:00:32]} 30. Bxh3 {[%emt 0:00:14]} Bxh3 {[%emt 0:00:11]} 31. Qh4 {[%emt 0:00:15]} Bc8 {[%emt 0:00:57]} 32. Ng4 {[%emt 0:00:26]} Bxg4 {[%emt 0:01:19]} 33. Qxg4 {[%emt 0:00:03]} Qd7 {[%emt 0:00:30]} 34. f5 {[%emt 0:00:30]} Qd6 {[%emt 0:00:52]} 35. Rd2 {[%emt 0:00:29]} Re7 {[%emt 0:00:56]} 36. Rg2 {[%emt 0:00:56]} b5 {[%emt 0:00:34]} 37. Qh4 {[%emt 0:00:27]} bxc4 {[%emt 0:00:33]} 38. bxc4 {[%emt 0:01:13]} Rb8 {[%emt 0:00:25]} 39. Kh1 {[%emt 0:00:38]} Rb4 {[%emt 0:00:55]} 40. a3 {[%emt 0:00:00]} Rb3 {[%emt 0:00:30]} 41. a4 {[%emt 0:06:52]} Rb4 {[%emt 0:10:02]} 42. a5 {[%emt 0:00:46]} Reb7 {[%emt 0:04:02]} 43. Bc3 {[%emt 0:01:24]} Rxc4 {[%emt 0:01:56]} 44. Bb2 {[%emt 0:00:23]} Rcb4 {[%emt 0:00:53]} 45. Bc3 {[%emt 0:00:18]} Rb1+ {[%emt 0:00:36]} 46. Rg1 {[%emt 0:00:07]} Rxg1+ {[%emt 0:01:28]} 47. Kxg1 {[%emt 0:00:02]} Qxd5 {[%emt 0:01:02]} 48. Qg4 {[%emt 0:00:33]} Rb1+ {[%emt 0:00:46]} 49. Kf2 {[%emt 0:01:15]} Qd3 {[%emt 0:02:03]} 50. Qg6 {[%emt 0:01:49]} Qc2+ {[%emt 0:01:44]} 51. Kg3 {[%emt 0:00:33]} Rg1+ {[%emt 0:00:10]} 0-1

[Event "EYCC 2017"]
[Site "Mamaia"]
[Date "2017.09.13"]
[Round "8"]
[White "Stepanyan, Eva"]
[Black "Lomaia, Diana"]
[Result "1-0"]
[ECO "B92"]
[WhiteElo "1927"]
[BlackElo "1753"]
[Annotator "NA RC"]
[PlyCount "193"]
[EventDate "2017.??.??"]
[EventType "swiss"]
[EventCountry "ROU"]
[SourceTitle "playchess.com"]
[Source "ChessBase"]
[SourceQuality "1"]
[TimeControl "40/5400+30:1800+30"]

1. e4 {[%emt 0:00:00]} c5 {[%emt 0:00:17]} 2. Nf3 {[%emt 0:00:00]} d6 {[%emt 0:00:28]} 3. d4 {[%emt 0:00:00]} cxd4 {[%emt 0:00:06]} 4. Nxd4 {[%emt 0:00:00]} Nf6 {[%emt 0:00:05]} 5. Nc3 {[%emt 0:00:01]} a6 {[%emt 0:01:07]} 6. Be2 {[%emt 0:00:14]} e5 {[%emt 0:00:40]} 7. Nf3 {[%emt 0:00:35]} Be7 {[%emt 0:00:52]} 8. Bg5 {[%emt 0:00:27]} Be6 {[%emt 0:00:41]} 9. Bxf6 {[%emt 0:01:12]} Bxf6 {[%emt 0:00:45]} 10. O-O {[%emt 0:01:10]} O-O {[%emt 0:00:36]} 11. Nd5 {[%emt 0:00:45] B92: Sicilian Najdorf: 6 Be2} Bxd5 {[%emt 0:02:23]} 12. Qxd5 {[%emt 0:01:46]} Nc6 {[%emt 0:00:22]} 13. Rfd1 {[%emt 0:05:43]} (13. Rad1 Qb6 14. Rb1 Nd4 15. Nxd4 exd4 16. Bd3 Rac8 17. Qf5 Be5 18. f4 g6 {1-0 (80) Kovalenko,I (2640)-Chocenka,D (2292) Panevezys 2017}) 13... Be7 {[%emt 0:01:14]} 14. Bc4 {[%emt 0:05:39]} Qc7 {[%emt 0:00:32]} 15. Bb3 {[%emt 0:02:16]} Rac8 {[%emt 0:01:23]} 16. c3 {[%emt 0:01:31]} Na5 {[%emt 0:08:12]} 17. Ne1 {[%emt 0:06:16]} Nxb3 $146 {[%emt 0:01:40]} ({Predecessor:} 17... b5 18. Nc2 Qc5 {1-0 (63) Connolly,S (2052)-Hanly,S Cork 2005}) 18. Qxb3 {[%emt 0:03:49]} Kh8 {[%emt 0:01:20]} 19. Nc2 {[%emt 0:01:45]} Bg5 {[%emt 0:04:41]} 20. Nb4 {[%emt 0:10:24]} f5 {[%emt 0:04:38]} 21. Qd5 {[%emt 0:07:40]} Rcd8 {[%emt 0:02:22]} 22. exf5 {[%emt 0:05:28]} Rxf5 {[%emt 0:00:40]} 23. Qd3 {[%emt 0:00:56]} Qf7 {[%emt 0:01:15]} 24. f3 {[%emt 0:01:40]} Rf6 {[%emt 0:09:42]} 25. Nd5 {[%emt 0:04:30]} Rh6 {[%emt 0:03:20]} 26. c4 {[%emt 0:03:10]} Bf4 {[%emt 0:03:48]} 27. h3 {[%emt 0:03:47]} Bg3 {[%emt 0:04:20]} 28. Nc3 {[%emt 0:04:04]} Qc7 {[%emt 0:06:15]} 29. Ne4 {[%emt 0:02:16]} Bh4 {[%emt 0:01:38]} 30. Kh1 {[%emt 0:02:13]} Rg6 {[%emt 0:01:13]} 31. Rac1 {[%emt 0:02:28]} Qb6 {[%emt 0:08:34]} 32. Rc2 {[%emt 0:07:20]} Be7 {[%emt 0:01:49]} 33. b3 {[%emt 0:03:08]} Rc8 {[%emt 0:03:44]} 34. Re2 {[%emt 0:02:03]} Qc6 {[%emt 0:08:32]} 35. Nc3 {[%emt 0:04:31]} Bf8 {[%emt 0:00:57]} 36. Nd5 {[%emt 0:00:42]} Qc5 {[%emt 0:04:12]} 37. Qf5 {[%emt 0:02:24]} Kg8 {[%emt 0:02:22]} 38. Kh2 {[%emt 0:03:16]} Qc6 {[%emt 0:06:20]} 39. Rdd2 $16 {[%emt 0:02:03]} Re8 {[%emt 0:03:27]} 40. Qe4 {[%emt 0:00:00]} Rc8 {[%emt 0:00:37]} 41. Rc2 {[%emt 0:05:51]} a5 {[%emt 0:01:35]} 42. a3 {[%emt 0:02:22]} b6 {[%emt 0:04:29]} 43. Qf5 {[%emt 0:02:50]} Rb8 {[%emt 0:02:11]} 44. Qe4 {[%emt 0:02:45]} Rc8 {[%emt 0:01:34]} 45. b4 {[%emt 0:01:17]} a4 {[%emt 0:03:13]} 46. b5 {[%emt 0:05:26]} Qc5 {[%emt 0:00:57]} 47. Nb4 {[%emt 0:00:28]} Rf6 {[%emt 0:05:47]} 48. g3 {[%emt 0:03:37]} Rf7 {[%emt 0:00:59]} 49. Red2 {[%emt 0:00:34]} Qc7 {[%emt 0:01:41]} 50. Nc6 {[%emt 0:01:13]} Rf6 {[%emt 0:03:30]} 51. Rd5 {[%emt 0:02:00]} Qf7 {[%emt 0:01:01]} 52. Kg2 {[%emt 0:00:20]} Re8 {[%emt 0:02:18]} 53. Rb2 {[%emt 0:01:39]} Qg6 {[%emt 0:01:59]} 54. Qxg6 {[%emt 0:02:25]} Rxg6 {[%emt 0:00:21]} 55. Re2 {[%emt 0:00:14]} Rge6 {[%emt 0:00:17]} 56. Re4 {[%emt 0:00:13]} g6 {[%emt 0:00:36]} 57. Nb4 {[%emt 0:01:35]} Kf7 {[%emt 0:01:33]} 58. Rd1 {[%emt 0:00:33]} Rb8 {[%emt 0:00:57]} 59. Nd5 {[%emt 0:00:27]} Rb7 {[%emt 0:00:26]} 60. Rb1 {[%emt 0:01:09]} Re8 {[%emt 0:00:57]} 61. Rb4 {[%emt 0:00:52]} Ra8 {[%emt 0:00:07]} 62. Rh4 {[%emt 0:00:59]} Kg7 {[%emt 0:00:40]} 63. Kf2 {[%emt 0:00:55]} Be7 {[%emt 0:01:27]} 64. Re4 {[%emt 0:00:16]} Bf8 {[%emt 0:00:21]} 65. Ke2 {[%emt 0:00:14]} Kf7 {[%emt 0:00:16]} 66. Kd3 {[%emt 0:00:20]} Ke6 {[%emt 0:00:29]} 67. Re1 {[%emt 0:00:38]} Bh6 {[%emt 0:00:19]} 68. Rd1 {[%emt 0:01:06]} Bg5 {[%emt 0:00:35]} 69. Ke2 {[%emt 0:00:52]} Bh6 {[%emt 0:00:58]} 70. Rb2 {[%emt 0:00:41]} Rc8 {[%emt 0:00:27]} 71. Kd3 {[%emt 0:00:27]} Rf8 {[%emt 0:00:18]} 72. Ke4 {[%emt 0:00:22]} Rc8 {[%emt 0:00:11]} 73. Rb4 {[%emt 0:00:26]} Ra8 {[%emt 0:00:15]} 74. h4 {[%emt 0:00:42]} Bf8 {[%emt 0:00:32]} 75. g4 {[%emt 0:00:33]} h6 {[%emt 0:00:36]} 76. Rh1 {[%emt 0:01:07]} Bg7 {[%emt 0:00:41]} 77. g5 {[%emt 0:00:35]} h5 {[%emt 0:00:37]} 78. Rf1 {[%emt 0:00:09]} Rf7 {[%emt 0:01:18]} 79. Nxb6 {[%emt 0:00:31]} Rf4+ {[%emt 0:00:05]} 80. Ke3 {[%emt 0:00:26]} Rb8 {[%emt 0:01:45]} 81. Nd5 {[%emt 0:00:16]} Rxh4 {[%emt 0:00:09]} 82. Rxa4 {[%emt 0:00:28]} Bf8 {[%emt 0:01:37]} 83. Rb4 {[%emt 0:00:25]} Rh2 {[%emt 0:00:51]} 84. Ra1 {[%emt 0:00:59]} Bg7 {[%emt 0:00:13]} 85. Rd1 {[%emt 0:00:28]} Ra2 {[%emt 0:00:22]} 86. Rb3 {[%emt 0:00:25]} Rb7 {[%emt 0:01:16]} 87. Nb4 {[%emt 0:00:25]} Rg2 {[%emt 0:00:15]} 88. Nc6 {[%emt 0:00:07]} Kf5 {[%emt 0:01:40]} 89. a4 {[%emt 0:00:28]} Rxg5 {[%emt 0:00:35]} 90. a5 {[%emt 0:00:09]} Rg2 {[%emt 0:00:07]} 91. a6 {[%emt 0:00:27]} Bh6+ {[%emt 0:00:30]} 92. Kd3 {[%emt 0:00:05]} Rf7 {[%emt 0:00:05]} 93. b6 {[%emt 0:00:28]} e4+ {[%emt 0:01:21]} 94. fxe4+ {[%emt 0:00:11]} Kg4 {[%emt 0:00:04]} 95. Kd4 {[%emt 0:00:35]} Bg7+ {[%emt 0:00:26]} 96. Kd5 {[%emt 0:00:07]} Ra2 {[%emt 0:01:16]} 97. b7 {[%emt 0:00:18]} 1-0

[Event "EYCC 2017"]
[Site "Mamaia"]
[Date "2017.09.13"]
[Round "8"]
[White "Kucharska, Honorata"]
[Black "Shpanko, Nadiia"]
[Result "1/2-1/2"]
[ECO "A47"]
[WhiteElo "1917"]
[BlackElo "2065"]
[Annotator "NA RC"]
[PlyCount "82"]
[EventDate "2017.??.??"]
[EventType "swiss"]
[EventCountry "ROU"]
[SourceTitle "playchess.com"]
[Source "ChessBase"]
[SourceQuality "1"]
[TimeControl "40/5400+30:1800+30"]

1. d4 {[%emt 0:00:00]} Nf6 {[%emt 0:00:35]} 2. Nf3 {[%emt 0:00:00]} b6 {[%emt 0:00:16]} 3. e3 {[%emt 0:00:07]} Bb7 {[%emt 0:00:12]} 4. Bd3 {[%emt 0:00:09]} c5 {[%emt 0:01:20]} 5. O-O {[%emt 0:00:33]} g6 {[%emt 0:03:34]} 6. b3 {[%emt 0:01:11]} Bg7 {[%emt 0:01:24]} 7. Bb2 {[%emt 0:00:21]} cxd4 {[%emt 0:02:13]} 8. exd4 {[%emt 0:00:55]} O-O {[%emt 0:01:23]} 9. Nbd2 {[%emt 0:01:31]} Nc6 {[%emt 0:02:47]} 10. a3 {[%emt 0:01:52]} Nd5 {[%emt 0:03:36]} 11. Re1 {[%emt 0:02:51]} Nf4 {[%emt 0:13:00]} 12. Bf1 {[%emt 0:00:38]} d5 {[%emt 0:02:30]} 13. g3 {[%emt 0:08:41]} Ne6 {[%emt 0:00:30]} 14. c3 {[%emt 0:00:07]} Nc7 {[%emt 0:02:33]} 15. b4 {[%emt 0:02:10]} Re8 {[%emt 0:08:32]} 16. Nb3 {[%emt 0:06:51]} a5 {[%emt 0:08:39]} 17. b5 {[%emt 0:01:39]} Nb8 {[%emt 0:01:58]} 18. a4 {[%emt 0:02:48]} Bc8 {[%emt 0:06:15]} 19. Bg2 {[%emt 0:03:20]} Ra7 {[%emt 0:06:07]} 20. Nbd2 {[%emt 0:04:15]} Bf5 {[%emt 0:02:38]} 21. h3 {[%emt 0:07:12]} h5 {[%emt 0:03:26]} 22. Kh2 {[%emt 0:06:17]} Nd7 {[%emt 0:01:42]} 23. Nh4 {[%emt 0:00:26]} Nf6 {[%emt 0:04:19]} 24. f4 {[%emt 0:02:55]} Be6 {[%emt 0:07:01]} 25. Nhf3 {[%emt 0:02:52]} Bh6 {[%emt 0:05:28]} 26. Bc1 {[%emt 0:03:02]} Rf8 {[%emt 0:01:29]} 27. Ne5 {[%emt 0:02:16]} Bd7 {[%emt 0:00:12]} 28. Nf1 {[%emt 0:02:18]} Kg7 {[%emt 0:02:35]} 29. Qe2 {[%emt 0:04:18]} Nce8 {[%emt 0:00:53]} 30. g4 {[%emt 0:01:57]} hxg4 {[%emt 0:00:56]} 31. hxg4 {[%emt 0:00:03]} Nxg4+ {[%emt 0:00:41]} 32. Nxg4 {[%emt 0:00:12]} Bxg4 {[%emt 0:00:01]} 33. Qxg4 {[%emt 0:00:19]} Nf6 {[%emt 0:00:01]} 34. Qg3 {[%emt 0:00:30]} Nh5 {[%emt 0:00:42]} 35. Qf3 {[%emt 0:00:40]} e6 {[%emt 0:01:16]} 36. Bd2 {[%emt 0:06:39]} Nxf4 {[%emt 0:01:01]} 37. Bxf4 {[%emt 0:01:06]} Qh4+ {[%emt 0:00:01]} 38. Kg1 {[%emt 0:01:13]} Bxf4 {[%emt 0:00:26]} 39. Red1 {[%emt 0:02:11]} Rh8 {[%emt 0:02:11]} 40. Rd3 {[%emt 0:00:00]} Rh5 {[%emt 0:01:54]} 41. Qh3 {[%emt 0:03:28]} Qg5 {[%emt 0:02:19]} 1/2-1/2

[Event "EYCC 2017"]
[Site "Mamaia"]
[Date "2017.09.13"]
[Round "8"]
[White "Zhurova, Anna"]
[Black "Matasaru, Stephanie"]
[Result "1-0"]
[ECO "C60"]
[WhiteElo "1864"]
[BlackElo "1662"]
[Annotator "NA RC"]
[PlyCount "59"]
[EventDate "2017.??.??"]
[EventType "swiss"]
[EventCountry "ROU"]
[SourceTitle "playchess.com"]
[Source "ChessBase"]
[SourceQuality "1"]
[TimeControl "40/5400+30:1800+30"]

1. e4 {[%emt 0:00:00]} e5 {[%emt 0:00:00]} 2. Nf3 {[%emt 0:00:00]} Nc6 {[%emt 0:00:00]} 3. Bb5 {[%emt 0:00:36]} Nge7 {[%emt 0:00:00]} 4. O-O {[%emt 0:00:32]} g6 {[%emt 0:00:03]} 5. c3 {[%emt 0:00:47]} Bg7 {[%emt 0:00:07]} 6. d4 {[%emt 0:00:25]} exd4 {[%emt 0:00:10]} 7. cxd4 {[%emt 0:00:14]} a6 {[%emt 0:02:45]} 8. Ba4 {[%emt 0:00:30]} b5 {[%emt 0:00:08]} 9. Bb3 {[%emt 0:04:07]} O-O {[%emt 0:01:27]} 10. Nc3 {[%emt 0:02:17]} d6 {[%emt 0:03:00]} 11. h3 {[%emt 0:01:04]} Na5 {[%emt 0:02:36]} 12. Bg5 {[%emt 0:03:48]} h6 {[%emt 0:01:11]} 13. Bh4 {[%emt 0:00:40]} g5 {[%emt 0:00:56]} 14. Bg3 {[%emt 0:00:10]} Bb7 {[%emt 0:11:39]} 15. Bc2 {[%emt 0:03:05]} Rc8 {[%emt 0:02:33]} 16. h4 {[%emt 0:01:19]} Ng6 {[%emt 0:07:34]} 17. hxg5 {[%emt 0:05:10]} hxg5 {[%emt 0:00:13]} 18. d5 {[%emt 0:02:06]} Nc4 {[%emt 0:04:06]} 19. Rb1 {[%emt 0:04:04]} Nxb2 {[%emt 0:06:41]} 20. Rxb2 {[%emt 0:00:06]} Bxc3 {[%emt 0:00:06]} 21. Rb3 {[%emt 0:00:04]} Bf6 {[%emt 0:06:21]} 22. Nd4 {[%emt 0:02:51]} Qd7 {[%emt 0:10:33]} 23. Nf5 {[%emt 0:02:29]} Ne7 {[%emt 0:00:56]} 24. Nh6+ {[%emt 0:00:38]} Kg7 {[%emt 0:00:15]} 25. Ng4 {[%emt 0:00:06]} Ng8 {[%emt 0:07:09]} 26. f4 {[%emt 0:04:49]} gxf4 {[%emt 0:02:02]} 27. Bxf4 {[%emt 0:02:51]} Qe7 {[%emt 0:01:32]} 28. Nxf6 {[%emt 0:02:06]} Nxf6 {[%emt 0:00:41]} 29. Rg3+ {[%emt 0:00:11]} Kh8 {[%emt 0:01:08]} 30. Bg5 {[%emt 0:00:06]} 1-0

[Event "EYCC 2017"]
[Site "Mamaia"]
[Date "2017.09.13"]
[Round "8"]
[White "Khamenya, Vitalia"]
[Black "Hajiyeva, Laman"]
[Result "1-0"]
[ECO "D05"]
[WhiteElo "1853"]
[BlackElo "1818"]
[Annotator "NA RC"]
[PlyCount "103"]
[EventDate "2017.??.??"]
[EventType "swiss"]
[EventCountry "ROU"]
[SourceTitle "playchess.com"]
[Source "ChessBase"]
[SourceQuality "1"]
[TimeControl "40/5400+30:1800+30"]

1. d4 {[%emt 0:00:00]} d5 {[%emt 0:00:13]} 2. e3 {[%emt 0:00:00]} e6 {[%emt 0:00:35]} 3. Bd3 {[%emt 0:00:30]} Nf6 {[%emt 0:00:35]} 4. Nf3 {[%emt 0:01:06]} Bd6 {[%emt 0:00:19]} 5. O-O {[%emt 0:00:10]} Nbd7 {[%emt 0:00:42]} 6. b3 {[%emt 0:00:22]} O-O {[%emt 0:00:54]} 7. Bb2 {[%emt 0:00:03]} b6 {[%emt 0:01:16]} 8. Ne5 {[%emt 0:01:14]} Bb7 {[%emt 0:01:07]} 9. Nd2 {[%emt 0:01:29]} Ne4 {[%emt 0:07:45]} 10. f3 {[%emt 0:03:29] D05: Damenbauernspiele (Colle-Aufbau)} Nxd2 {[%emt 0:02:55]} 11. Qxd2 {[%emt 0:00:14]} c5 {[%emt 0:01:57]} (11... f6 12. Nxd7 Qxd7 13. e4 c5 14. e5 Be7 15. c3 f5 16. a4 Bc6 17. Ra2 a5 {½-½ (32) Mastrovasilis,A (2537)-Halkias,S (2584) Thessaloniki 2017}) 12. f4 {[%emt 0:01:48]} Rc8 {[%emt 0:06:13]} 13. Qe2 {[%emt 0:02:09]} Nf6 {[%emt 0:03:33]} 14. f5 $146 {[%emt 0:01:52]} ({Vorgänger:} 14. dxc5 bxc5 15. c4 Qc7 16. Rac1 Rfd8 17. Bb1 Bf8 18. cxd5 exd5 {0-1 (53) Lan,I-Botvinnik,I (2185) Ramat Aviv 1998}) 14... Qc7 {[%emt 0:10:17]} 15. g4 {[%emt 0:12:59]} Bxe5 {[%emt 0:18:15]} 16. dxe5 {[%emt 0:08:02]} Nd7 {[%emt 0:00:42]} 17. f6 {[%emt 0:05:14]} g6 {[%emt 0:11:47]} 18. Qf2 {[%emt 0:02:15]} d4 {[%emt 0:00:31]} 19. exd4 {[%emt 0:04:55]} Qc6 {[%emt 0:02:06]} 20. Qg3 {[%emt 0:01:53]} cxd4 {[%emt 0:02:11]} 21. Bxd4 {[%emt 0:03:30]} Qd5 {[%emt 0:00:51]} 22. Bb2 {[%emt 0:04:47]} Nc5 {[%emt 0:03:30]} 23. Be2 {[%emt 0:11:09]} Qh1+ {[%emt 0:04:56]} 24. Kf2 {[%emt 0:00:13]} Ne4+ {[%emt 0:00:05]} 25. Ke3 {[%emt 0:01:21]} Nxg3 {[%emt 0:00:16]} 26. Rxh1 {[%emt 0:00:12]} Nxh1 {[%emt 0:00:04]} 27. c4 {[%emt 0:02:32]} Rfd8 {[%emt 0:03:35]} 28. Ba3 $19 {[%emt 0:03:01]} Rc5 {[%emt 0:11:26]} 29. Bxc5 {[%emt 0:03:08]} bxc5 {[%emt 0:00:00]} 30. Rd1 {[%emt 0:01:58]} Rd4 {[%emt 0:02:20]} 31. Rxd4 {[%emt 0:08:25]} cxd4+ {[%emt 0:00:01]} 32. Kxd4 {[%emt 0:00:10]} Nf2 {[%emt 0:00:07]} 33. b4 {[%emt 0:01:39]} Nh3 {[%emt 0:03:42]} 34. a4 {[%emt 0:02:43]} Nf4 {[%emt 0:01:36]} 35. Bd1 {[%emt 0:03:12]} Kf8 {[%emt 0:00:27]} 36. a5 {[%emt 0:01:48]} Ke8 {[%emt 0:00:41]} 37. Ba4+ {[%emt 0:00:50]} Kd8 {[%emt 0:00:03]} 38. c5 {[%emt 0:00:20]} Nd5 {[%emt 0:01:17]} 39. c6 {[%emt 0:01:31]} Bc8 {[%emt 0:00:14]} 40. b5 {[%emt 0:00:00]} h5 {[%emt 0:00:37]} 41. gxh5 {[%emt 0:08:38]} gxh5 {[%emt 0:00:20]} 42. h4 {[%emt 0:00:39]} Kc7 {[%emt 0:10:46]} 43. Bd1 {[%emt 0:03:51]} Nf4 {[%emt 0:02:57]} 44. Ke4 {[%emt 0:03:09]} Ng6 {[%emt 0:00:30]} 45. Bxh5 {[%emt 0:00:17]} Nh8 {[%emt 0:00:02]} 46. Be2 {[%emt 0:11:04]} a6 {[%emt 0:00:59]} 47. bxa6 {[%emt 0:00:40]} Kxc6 {[%emt 0:00:14]} 48. h5 {[%emt 0:01:53]} Kc5 {[%emt 0:00:36]} 49. Kf4 {[%emt 0:00:20]} Bxa6 {[%emt 0:00:37]} 50. Bxa6 {[%emt 0:00:08]} Kb4 {[%emt 0:00:03]} 51. Kg5 {[%emt 0:00:17]} Kxa5 {[%emt 0:00:02]} 52. Kh6 {[%emt 0:01:07]} 1-0